bitfinex-derivatives/quotes_SOLF0:USTF0_20260129
["timestamp","ask_amount","ask_price","bid_price","bid_amount"]
[1769709440534,6.57886481,118.01,117.94,35.23925231]
[1769709441432,7.6382,118.0,117.94,35.23925231]
[1769709441633,7.6382,118.0,117.94,42.88125231]
[1769709444329,14.8845061,118.0,117.94,35.23925231]
[1769709444633,14.21450251,117.99,117.92,42.88215231]
[1769709444833,7.6388,117.99,117.92,42.88215231]
[1769709450438,6.59427908,117.98,117.92,42.88215231]
[1769709450847,6.59427908,117.98,117.92,303.88215231]
[1769709451340,14.23377908,117.98,117.92,42.88215231]
[1769709451541,6.59701733,117.97,117.92,42.88215231]
[1769709452342,7.6395,117.98,117.92,42.88215231]
[1769709452541,14.8851061,118.0,117.92,42.88215231]
[1769709452837,6.59853907,117.99,117.92,42.88215231]
[1769709453142,6.59853907,117.98,117.92,42.88215231]
[1769709453334,6.59853907,117.97,117.92,42.88215231]
[1769709453535,7.2463061,118.0,117.92,42.88215231]
[1769709453731,6.60028658,117.99,117.92,42.88215231]
[1769709453936,6.60028658,117.98,117.92,42.88215231]
[1769709454135,6.60028658,117.97,117.92,42.88215231]
[1769709454336,7.6388,117.99,117.92,42.88215231]
[1769709454640,6.60065912,117.98,117.92,42.88215231]
[1769709454841,6.60065912,117.97,117.92,42.88215231]
[1769709455137,7.6388,117.99,117.92,42.88215231]
[1769709455336,14.24118852,117.98,117.92,42.88215231]
[1769709455536,6.60168852,117.97,117.92,42.88215231]
[1769709456242,7.6395,117.98,117.92,42.88215231]
[1769709456438,6.60385543,117.97,117.92,42.88215231]
[1769709456639,7.6395,117.98,117.92,42.88215231]
[1769709456942,6.60390938,117.97,117.92,42.88215231]
[1769709457141,6.60311177,117.96,117.9,35.23925231]
[1769709457341,6.60311177,117.95,117.9,35.23925231]
[1769709457542,14.24541177,117.94,117.88,35.23925231]
[1769709459542,6.60548213,117.92,117.83,35.23925231]
[1769709459740,6.60548213,117.91,117.83,35.23925231]
[1769709459940,6.60548213,117.9,117.83,35.23925231]
[1769709460249,7.24531922,117.94,117.85,35.23925231]
[1769709460447,6.60674908,117.93,117.85,35.23925231]
[1769709460647,6.60674908,117.92,117.85,35.23925231]
[1769709460839,126.10461922,117.96,117.85,35.23925231]
[1769709461039,14.24840558,117.95,117.88,35.23925231]
[1769709461240,6.60690558,117.94,117.88,35.23925231]
[1769709461639,7.6405,117.97,117.88,42.88465231]
[1769709461837,6.61085183,117.96,117.88,42.88465231]
[1769709462041,6.61085183,117.95,117.88,42.88465231]
[1769709462348,7.6405,117.97,117.88,42.88465231]
[1769709462550,6.61274373,117.96,117.88,42.88465231]
[1769709462752,6.61274373,117.95,117.88,42.88465231]
[1769709463049,6.61274373,117.94,117.88,42.88465231]
[1769709463240,7.6412,117.96,117.88,307.76465231]
[1769709463440,6.61401407,117.95,117.88,307.76465231]
[1769709463640,7.6412,117.96,117.88,307.76465231]
[1769709463641,6.61401407,117.94,117.89,35.23925231]
[1769709463945,6.61365168,117.93,117.87,35.23925231]
[1769709464148,6.61365168,117.92,117.86,7.6468]
[1769709464340,6.61290655,117.91,117.86,42.88605231]
[1769709464541,7.24531922,117.94,117.86,42.88605231]
[1769709464849,6.61292359,117.93,117.86,42.88605231]
[1769709465050,6.61292359,117.92,117.86,42.88605231]
[1769709465244,7.24531922,117.94,117.86,42.88605231]
[1769709465444,6.43119278,117.93,117.86,42.88605231]
[1769709466241,6.43119278,117.93,117.86,35.23925231]
[1769709466441,13.676512,117.92,117.86,35.23925231]
[1769709466644,6.43119278,117.91,117.86,35.23925231]
[1769709467046,14.07519278,117.91,117.84,42.88745231]
[1769709467242,6.43119278,117.9,117.84,42.88745231]
[1769709467558,7.24531922,117.88,117.81,35.23925231]
[1769709468045,6.4207208,117.87,117.81,35.23925231]
[1769709468246,7.24531922,117.88,117.81,35.23925231]
[1769709468450,6.41497979,117.87,117.81,35.23925231]
[1769709468846,14.06157979,117.87,117.81,35.23925231]
[1769709469049,7.6466,117.87,117.81,35.23925231]
[1769709470053,14.05642091,117.86,117.81,35.23925231]
[1769709470351,7.24531922,117.88,117.81,35.23925231]
[1769709470552,6.40476143,117.87,117.81,35.23925231]
[1769709470754,7.6466,117.87,117.81,35.23925231]
[1769709470946,7.6466,117.87,117.8,7.6511]
[1769709471145,6.40357685,117.86,117.77,35.23925231]
[1769709471350,118.94,117.88,117.79,35.23925231]
[1769709471552,118.9105,117.91,117.79,35.23925231]
[1769709471752,118.9105,117.91,117.81,35.23925231]
[1769709471753,6.40154203,117.9,117.81,35.23925231]
[1769709471955,6.40154203,117.9,117.82,42.88895231]
[1769709471956,7.6458,117.89,117.82,42.88895231]
[1769709472254,118.917,117.9,117.82,35.23925231]
[1769709472442,6.4003392,117.89,117.82,35.23925231]
[1769709472643,7.646,117.88,117.82,35.23925231]
[1769709473152,7.24531922,117.89,117.82,35.23925231]
[1769709473356,7.6466,117.87,117.82,35.23925231]
[1769709473858,118.9393,117.88,117.79,35.23925231]
[1769709474056,6.39675683,117.87,117.79,35.23925231]
[1769709474254,7.6465,117.88,117.81,35.23925231]
[1769709474448,118.9399,117.88,117.75,119.0657]
[1769709474644,7.24531922,117.86,117.77,35.23925231]
[1769709475060,7.6481,117.85,117.79,35.23925231]
[1769709479060,7.6472,117.87,117.8,35.23925231]
[1769709479261,118.917,117.9,117.8,35.23925231]
[1769709480363,7.646,117.88,117.82,35.23925231]
[1769709480756,7.6466,117.87,117.82,35.23925231]
[1769709481064,118.9375,117.88,117.82,35.23925231]
[1769709481660,118.9375,117.88,117.8,35.23925231]
[1769709482557,118.917,117.9,117.8,35.23925231]
[1769709482965,118.9281,117.89,117.8,42.89015231]
[1769709483160,126.17341922,117.89,117.81,35.23925231]
[1769709484564,7.6466,117.87,117.81,35.23925231]
[1769709484755,126.15221922,117.91,117.81,35.23925231]
[1769709484960,126.13471922,117.93,117.82,35.23925231]
[1769709485161,118.8787,117.94,117.83,35.23925231]
[1769709485662,7.6432,117.93,117.86,35.23925231]
[1769709487058,7.6433,117.92,117.86,35.23925231]
[1769709487256,126.12511922,117.94,117.86,35.23925231]
[1769709487467,7.24531922,117.92,117.86,35.23925231]
[1769709488262,126.12511922,117.94,117.86,35.23925231]
[1769709488471,118.9103,117.91,117.83,35.23925231]
[1769709488665,13.64432161,117.9,117.83,35.23925231]
[1769709488859,7.6452,117.9,117.83,42.88805231]
[1769709489959,126.15561922,117.91,117.83,35.23925231]
[1769709490269,7.24531922,117.89,117.83,35.23925231]
[1769709491362,7.6458,117.89,117.83,35.23925231]
[1769709492470,7.6458,117.89,117.83,42.88835231]
[1769709493667,7.6461,117.88,117.83,35.23925231]
[1769709496461,126.15771922,117.91,117.83,35.23925231]
[1769709496658,14.03644414,117.9,117.83,35.23925231]
[1769709496859,7.6452,117.9,117.83,35.23925231]
[1769709498375,7.6452,117.9,117.84,42.88775231]
[1769709499273,6.40153378,117.89,117.84,42.88775231]
[1769709499670,14.04693378,117.89,117.84,35.23925231]
[1769709499872,7.6454,117.89,117.84,35.23925231]
[1769709501176,6.41061343,117.88,117.84,35.23925231]
[1769709501475,7.6454,117.89,117.84,35.23925231]
[1769709501677,6.41095414,117.88,117.84,35.23925231]
[1769709501875,7.6454,117.89,117.84,35.23925231]
[1769709502068,6.40781965,117.88,117.84,35.23925231]
[1769709502263,7.6454,117.89,117.84,35.23925231]
[1769709502573,6.40958959,117.88,117.84,35.23925231]
[1769709502774,6.40942509,117.87,117.84,35.23925231]
[1769709502964,7.646,117.88,117.8,35.23925231]
[1769709503169,6.40939041,117.87,117.81,35.23925231]
[1769709503370,6.40939041,117.86,117.81,35.23925231]
[1769709503572,7.6466,117.87,117.81,42.88965231]
[1769709504577,7.646,117.88,117.81,42.88965231]
[1769709504784,6.4129367,117.87,117.81,42.88965231]
[1769709504979,7.646,117.88,117.81,42.88965231]
[1769709505176,14.05966149,117.87,117.81,35.23925231]
[1769709505381,6.41286149,117.86,117.81,35.23925231]
[1769709505581,6.41286149,117.85,117.81,35.23925231]
[1769709505787,7.6472,117.86,117.81,35.23925231]
[1769709505986,7.70187293,117.88,117.81,35.23925231]
[1769709506287,7.70187293,117.89,117.81,35.23925231]
[1769709506683,133.86599215,117.9,117.81,35.23925231]
[1769709506885,7.6459,117.88,117.81,42.88965231]
[1769709507487,7.6466,117.87,117.81,35.23925231]
[1769709507776,14.94719215,117.88,117.81,35.23925231]
[1769709508188,7.6473,117.86,117.81,35.23925231]
[1769709508384,7.70187293,117.87,117.81,35.23925231]
[1769709510387,22.59379215,117.88,117.81,35.23925231]
[1769709511294,22.59379215,117.88,117.82,39.68273863]
[1769709511588,7.24531922,117.88,117.79,32.03303863]
[1769709511793,7.24531922,117.84,117.79,32.03303863]
[1769709512092,7.70187293,117.87,117.79,32.03303863]
[1769709512291,7.70187293,117.89,117.81,32.03303863]
[1769709512492,7.70187293,117.89,117.81,39.68313863]
[1769709512687,22.59269215,117.89,117.81,39.68313863]
[1769709513895,15.34737293,117.89,117.81,39.68313863]
[1769709515096,7.70187293,117.9,117.83,32.03303863]
[1769709515289,15.34617293,117.91,117.83,32.03303863]
[1769709515490,7.70187293,117.92,117.83,32.03303863]
[1769709515995,22.59029215,117.93,117.84,32.03303863]
[1769709516600,7.6435,117.92,117.84,39.68103863]
[1769709516986,7.6435,117.92,117.84,32.03303863]
[1769709517487,15.34537293,117.92,117.84,32.03303863]
[1769709517688,15.34607293,117.91,117.84,32.03303863]
[1769709517895,14.95207654,117.9,117.84,32.03303863]
[1769709518102,6.40517205,117.89,117.84,32.03303863]
[1769709518307,6.40517205,117.88,117.84,32.03303863]
[1769709518488,6.40517205,117.87,117.84,32.03303863]
[1769709518693,22.59697654,117.9,117.84,32.03303863]
[1769709519000,6.40527246,117.89,117.84,32.03303863]
[1769709519195,6.40527246,117.88,117.84,32.03303863]
[1769709519396,6.40527246,117.87,117.84,32.03303863]
[1769709519605,6.40467202,117.86,117.81,32.03303863]
[1769709519796,15.34737293,117.89,117.81,32.03303863]
[1769709519994,6.40458556,117.88,117.81,32.03303863]
[1769709520194,6.40458556,117.87,117.81,32.03303863]
[1769709520392,6.40458556,117.86,117.81,32.03303863]
[1769709520596,15.34737293,117.89,117.81,32.03303863]
[1769709520792,6.40582488,117.88,117.81,32.03303863]
[1769709520998,6.40582488,117.87,117.81,32.03303863]
[1769709521199,6.40582488,117.86,117.81,32.03303863]
[1769709521406,7.6461,117.88,117.81,32.03303863]
[1769709523404,7.70187293,117.89,117.81,39.68313863]
[1769709523701,7.70187293,117.93,117.83,28.83012619]
[1769709523900,126.59077293,117.93,117.85,28.83012619]
[1769709524205,7.70187293,117.92,117.85,28.83012619]
[1769709524800,7.70187293,117.91,117.85,28.83012619]
[1769709525106,7.6436,117.92,117.85,28.83012619]
[1769709525697,3.04456552,117.9,117.85,28.83012619]
[1769709526207,10.74643845,117.91,117.85,28.83012619]
[1769709526409,3.04456552,117.91,117.85,28.83012619]
[1769709526606,3.04456552,117.9,117.85,28.83012619]
[1769709526908,3.04456552,117.91,117.85,28.83012619]
[1769709527204,10.68816552,117.92,117.85,31.87469171]
[1769709527399,7.6436,117.92,117.87,31.87469171]
[1769709527602,7.6426,117.94,117.87,28.83012619]
[1769709527791,3.04456552,117.95,117.89,28.83012619]
[1769709528191,7.6413,117.96,117.89,31.87469171]
[1769709528401,129.18614714,117.99,117.91,28.83012619]
[1769709528402,7.70187293,117.99,117.91,28.83012619]
[1769709528605,3.04456552,118.0,117.94,28.83012619]
[1769709528801,3.04456552,117.98,117.94,28.83012619]
[1769709529802,133.74045228,118.02,117.94,28.83012619]
[1769709530192,7.23877935,118.04,117.94,28.83012619]
[1769709530401,126.02007935,118.04,117.94,28.83012619]
[1769709530599,141.35785228,118.04,117.95,28.83012619]
[1769709530796,126.02007935,118.04,117.95,28.83012619]
[1769709531809,7.23877935,118.05,117.96,28.83012619]
[1769709533310,14.21194138,118.05,117.96,28.83012619]
[1769709533510,7.6353,118.05,117.96,28.83012619]
[1769709533701,12.85928623,118.04,117.96,28.83012619]
[1769709533907,6.28264485,118.03,117.96,28.83012619]
[1769709534204,125.33434138,118.06,117.97,28.83012619]
[1769709534501,6.27654465,118.05,117.97,28.83012619]
[1769709534707,340.52656158,118.08,117.98,28.83012619]
[1769709534902,6.27798561,118.07,117.99,28.83012619]
[1769709535108,14.20864138,118.1,118.0,28.83012619]
[1769709535294,6.27877829,118.09,118.0,28.83012619]
[1769709535693,14.20864138,118.1,118.0,28.83012619]
[1769709535904,14.20864138,118.1,118.01,28.83012619]
[1769709536699,132.92584138,118.1,118.01,28.83012619]
[1769709536903,6.57664138,118.08,118.01,28.83012619]
[1769709537105,125.31334138,118.08,118.01,28.83012619]
[1769709537300,6.57664138,118.06,117.97,28.83012619]
[1769709537501,6.57664138,118.04,117.97,28.83012619]
[1769709537704,6.57664138,118.05,117.97,28.83012619]
[1769709538011,14.21034138,118.07,117.97,28.83012619]
[1769709538813,132.95614138,118.07,117.97,28.83012619]
[1769709539418,132.93774138,118.09,117.99,28.83012619]
[1769709539912,125.30524138,118.09,117.99,28.83012619]
[1769709540113,125.32514138,118.07,117.99,28.83012619]
[1769709540517,6.57664138,118.05,117.99,28.83012619]
[1769709541013,125.34764138,118.05,117.99,28.83012619]
[1769709541212,125.36434138,118.03,117.96,28.83012619]
[1769709542109,7.6382,118.0,117.92,28.83012619]
[1769709544114,7.6389,117.99,117.92,28.83012619]
[1769709546918,7.6389,117.99,117.93,28.83012619]
[1769709547419,125.38504138,118.01,117.93,28.83012619]
[1769709547420,7.6396,117.98,117.93,28.83012619]
[1769709547810,7.6396,117.98,117.87,125.52104138]
[1769709547811,6.57664138,117.98,117.87,118.9444]
[1769709548005,6.57664138,117.98,117.89,261.92]
[1769709548215,125.38504138,118.01,117.89,387.42094138]
[1769709548409,118.8084,118.01,117.89,387.42094138]
[1769709549416,118.8084,118.01,117.92,7.6432]
[1769709549417,7.6393,117.99,117.92,7.6432]
[1769709549822,7.6393,117.99,117.93,14.41506309]
[1769709550422,7.638,118.01,117.94,14.41506309]
[1769709551625,2.76361311,118.0,117.94,14.41506309]
[1769709553330,7.638,118.01,117.94,14.41506309]
[1769709553525,10.40161311,118.01,117.95,14.41506309]
[1769709554028,7.6381,118.0,117.95,14.41506309]
[1769709554629,10.40171311,118.0,117.95,14.41506309]
[1769709555524,7.6381,118.0,117.95,14.41506309]
[1769709556224,7.6388,117.99,117.95,14.41506309]
[1769709556827,10.40241311,117.99,117.95,14.41506309]
[1769709557029,7.6388,117.99,117.95,14.41506309]
[1769709557224,10.40241311,117.99,117.95,14.41506309]
[1769709557726,7.6388,117.99,117.95,14.41506309]
[1769709558525,10.40241311,117.99,117.95,14.41506309]
[1769709559828,118.7986,118.02,117.93,14.41506309]
[1769709559829,2.76361311,117.97,117.93,14.41506309]
[1769709561225,2.76361311,117.97,117.89,261.44]
[1769709561226,2.76361311,117.95,117.9,14.41506309]
[1769709561435,2.76361311,117.94,117.9,14.41506309]
[1769709561824,2.76361311,117.94,117.87,22.06156309]
[1769709562031,2.76361311,117.94,117.87,24.8251762]
[1769709562331,2.76361311,117.94,117.88,14.41506309]
[1769709562535,2.76361311,117.93,117.88,14.41506309]
[1769709562936,2.76361311,117.95,117.89,14.41506309]
[1769709563125,118.8539,117.97,117.89,14.41506309]
[1769709563324,2.76361311,117.95,117.89,14.41506309]
[1769709564434,2.76361311,117.97,117.9,17.1786762]
[1769709564827,10.40371311,117.98,117.91,17.1786762]
[1769709565221,10.40371311,117.98,117.92,17.1786762]
[1769709565635,7.6401,117.98,117.92,14.41506309]
[1769709567535,7.6401,117.97,117.92,14.41506309]
[1769709569635,7.641,117.96,117.9,14.41506309]
[1769709571038,7.641,117.96,117.91,14.41506309]
[1769709571739,7.6401,117.97,117.91,14.41506309]
[1769709572531,7.6408,117.96,117.91,14.41506309]
[1769709573843,7.6401,117.97,117.92,14.41506309]
[1769709574443,7.6395,117.98,117.92,14.41506309]
[1769709575142,6.20458792,117.97,117.92,14.41506309]
[1769709575343,125.40931186,117.99,117.92,14.41506309]
[1769709575545,6.20411496,117.98,117.92,14.41506309]
[1769709575838,6.20411496,117.97,117.92,14.41506309]
[1769709576045,125.40931186,117.99,117.92,14.41506309]
[1769709576248,7.6401,117.97,117.92,14.41506309]
[1769709581246,6.21482469,117.96,117.92,14.41506309]
[1769709581442,7.6401,117.97,117.92,14.41506309]
[1769709582047,6.21486129,117.96,117.92,14.41506309]
[1769709582246,7.6407,117.96,117.92,14.41506309]
[1769709584253,6.22542672,117.95,117.92,14.41506309]
[1769709584444,7.6407,117.96,117.92,14.41506309]
[1769709584648,6.22549936,117.95,117.92,14.41506309]
[1769709584845,7.6407,117.96,117.92,14.41506309]
[1769709585048,6.22549936,117.95,117.92,14.41506309]
[1769709585254,7.6407,117.96,117.92,14.41506309]
[1769709587256,6.16045792,117.95,117.92,14.41506309]
[1769709587450,7.6416,117.95,117.9,22.05956309]
[1769709587651,8.92641618,117.94,117.9,14.41506309]
[1769709587953,8.92571221,117.93,117.88,14.41506309]
[1769709588257,6.27956875,117.92,117.88,14.41506309]
[1769709588457,2.76623544,117.93,117.88,14.41506309]
[1769709588655,6.27934835,117.92,117.88,14.41506309]
[1769709588847,2.76623544,117.9,117.86,14.41506309]
[1769709589054,9.04558076,117.89,117.86,14.41506309]
[1769709589256,2.76623544,117.89,117.86,14.41506309]
[1769709589860,9.03892588,117.89,117.86,14.41506309]
[1769709590360,10.41153544,117.89,117.84,14.41506309]
[1769709590659,2.76623544,117.88,117.84,14.41506309]
[1769709591247,7.6453,117.89,117.84,14.41506309]
[1769709591446,2.76623544,117.88,117.84,14.41506309]
[1769709591754,10.41153544,117.89,117.84,14.41506309]
[1769709595459,10.41153544,117.89,117.82,2.76623544]
[1769709595460,2.76623544,117.87,117.82,22.06486309]
[1769709595654,7.646,117.88,117.82,22.06486309]
[1769709595860,10.41223544,117.88,117.83,14.41506309]
[1769709596756,118.9095,117.91,117.83,22.06416309]
[1769709596757,10.41153544,117.89,117.83,22.06416309]
[1769709597363,7.6453,117.89,117.84,14.41506309]
[1769709598062,186.08,117.95,117.87,14.41506309]
[1769709598368,2.76623544,117.91,117.87,14.41506309]
[1769709598667,2.76623544,117.91,117.84,2.76623544]
[1769709598668,2.76623544,117.9,117.85,14.41506309]
[1769709598862,10.41023544,117.91,117.85,14.41506309]
[1769709599066,2.76623544,117.92,117.86,14.41506309]
[1769709599263,9.01722348,117.92,117.86,14.41506309]
[1769709599973,193.722,117.95,117.87,17.18129853]
[1769709600268,9.01869606,117.94,117.87,17.18129853]
[1769709600571,2.76623544,117.92,117.87,14.41506309]
[1769709600866,6.25246062,117.92,117.87,14.41506309]
[1769709601065,7.6426,117.94,117.88,17.18129853]
[1769709601463,2.76623544,117.95,117.89,17.18129853]
[1769709601663,6.25659976,117.97,117.91,17.18129853]
[1769709601859,2.76623544,117.99,117.93,17.18129853]
[1769709602164,6.25801509,117.98,117.93,14.41506309]
[1769709602362,6.25801509,117.98,117.93,17.18129853]
[1769709602563,6.25801509,117.97,117.93,14.41506309]
[1769709602758,312.90536586,118.01,117.93,14.41506309]
[1769709602960,9.02549119,118.0,117.93,17.18129853]
[1769709603265,6.25925575,117.99,117.95,14.41506309]
[1769709603565,245.24696586,118.04,117.95,14.41506309]
[1769709603867,7.6376,118.01,117.92,14.41506309]
[1769709604169,6.26209406,118.0,117.92,14.41506309]
[1769709604365,133.06203997,118.01,117.92,14.41506309]
[1769709604366,6.26209406,117.99,117.92,14.41506309]
[1769709604571,6.26209406,117.98,117.92,14.41506309]
[1769709604865,7.6389,117.99,117.92,14.41506309]
[1769709605063,6.2616403,117.98,117.92,14.41506309]
[1769709605259,6.2616403,117.97,117.9,14.41506309]
[1769709605458,6.2616403,117.96,117.9,14.41506309]
[1769709605664,6.2616403,117.95,117.9,14.41506309]
[1769709605858,7.6402,117.97,117.9,14.41506309]
[1769709606065,6.26067521,117.96,117.9,14.41506309]
[1769709606263,133.08433997,117.99,117.9,14.41506309]
[1769709606468,13.90117563,117.98,117.9,22.05946309]
[1769709606860,6.26127563,117.97,117.9,14.41506309]
[1769709607064,13.90217563,117.96,117.88,7.6456]
[1769709607258,6.26127563,117.95,117.87,14.41506309]
[1769709607467,13.90337563,117.94,117.87,14.41506309]
[1769709607669,6.25911276,117.93,117.86,7.6468]
[1769709607869,6.25911276,117.92,117.86,7.6468]
[1769709608073,6.25911276,117.91,117.84,14.41506309]
[1769709608372,125.46667411,117.93,117.85,14.41506309]
[1769709608672,6.25720729,117.92,117.85,14.41506309]
[1769709608872,125.46667411,117.93,117.85,14.41506309]
[1769709608873,6.25720729,117.91,117.85,14.41506309]
[1769709609075,125.46667411,117.93,117.85,14.41506309]
[1769709609076,6.57727411,117.93,117.85,14.41506309]
[1769709609267,6.25304489,117.92,117.85,14.41506309]
[1769709609470,6.25304489,117.91,117.85,14.41506309]
[1769709609666,186.82,117.94,117.85,14.41506309]
[1769709609972,6.25324058,117.93,117.85,14.41506309]
[1769709610177,6.25324058,117.92,117.85,14.41506309]
[1769709610370,7.6428,117.93,117.85,22.06276309]
[1769709610671,6.25288957,117.92,117.85,22.06276309]
[1769709611268,6.25288957,117.91,117.85,22.06276309]
[1769709611671,6.25288957,117.9,117.85,14.41506309]
[1769709611871,6.57727411,117.92,117.85,14.41506309]
[1769709612173,6.24975878,117.91,117.85,14.41506309]
[1769709612375,6.24975878,117.9,117.83,22.06376309]
[1769709612571,6.24975878,117.89,117.83,14.41506309]
[1769709612774,133.15663997,117.92,117.83,14.41506309]
[1769709613073,7.6454,117.89,117.83,14.41506309]
[1769709613476,125.49697411,117.9,117.83,14.41506309]
[1769709613773,6.24457137,117.89,117.83,14.41506309]
[1769709613975,6.24457137,117.88,117.83,14.41506309]
[1769709614173,133.17353997,117.9,117.83,14.41506309]
[1769709614370,7.6473,117.86,117.79,22.06646309]
[1769709614571,7.6473,117.86,117.75,14.41506309]
[1769709614572,244.54667411,117.84,117.75,14.41506309]
[1769709614769,6.57727411,117.82,117.75,14.41506309]
[1769709615176,6.57727411,117.83,117.75,14.41506309]
[1769709615368,119.0066,117.82,117.75,14.41506309]
[1769709615574,131.80462879,117.81,117.72,14.41506309]
[1769709615778,6.21615468,117.8,117.73,14.41506309]
[1769709615977,187.7,117.82,117.74,14.41506309]
[1769709616367,313.39727411,117.86,117.74,14.41506309]
[1769709616567,6.21337986,117.85,117.74,14.41506309]
[1769709616768,118.9801,117.84,117.75,14.41506309]
[1769709617072,6.57727411,117.8,117.71,14.37470112]
[1769709617267,125.57507411,117.82,117.71,14.37470112]
[1769709617473,7.6512,117.8,117.72,7.656]
[1769709617680,6.57727411,117.78,117.71,14.37470112]
[1769709617982,125.61807411,117.78,117.66,119.1585]
[1769709618174,6.57727411,117.78,117.68,119.1355]
[1769709618476,6.57727411,117.8,117.69,119.1258]
[1769709618878,7.6527,117.78,117.69,7.6579]
[1769709619068,7.6527,117.78,117.69,14.39488211]
[1769709619272,6.57727411,117.8,117.7,14.39488211]
[1769709619668,188.12,117.81,117.72,14.39488211]
[1769709619881,125.55557411,117.84,117.73,14.39488211]
[1769709620184,7.648,117.85,117.77,7.6529]
[1769709620569,7.648,117.85,117.76,14.39488211]
[1769709620570,6.57727411,117.85,117.76,14.39488211]
[1769709621270,7.6487,117.84,117.76,14.39488211]
[1769709621978,7.6477,117.86,117.78,14.39488211]
[1769709622484,188.22,117.87,117.8,14.39488211]
[1769709622782,188.22,117.87,117.79,7.6516]
[1769709622975,313.75127411,117.87,117.78,14.39488211]
[1769709623576,188.22,117.87,117.79,14.39488211]
[1769709624281,188.22,117.87,117.8,22.04578211]
[1769709624477,125.48597411,117.91,117.8,14.39488211]
[1769709624682,307.838,117.92,117.81,14.39488211]
[1769709624990,188.94,117.92,117.84,14.39488211]
[1769709625877,131.67706096,117.91,117.81,14.39488211]
[1769709626077,125.50627411,117.89,117.79,14.39488211]
[1769709626284,6.18816534,117.88,117.79,14.39488211]
[1769709626583,125.48837411,117.91,117.81,14.39488211]
[1769709626989,188.94,117.92,117.82,14.39488211]
[1769709627189,188.94,117.92,117.83,14.39488211]
[1769709627983,188.94,117.92,117.81,119.0034]
[1769709627984,131.675998,117.91,117.8,14.39488211]
[1769709628176,6.57727411,117.91,117.81,14.39488211]
[1769709628373,307.8386,117.92,117.81,14.39488211]
[1769709628580,307.8386,117.92,117.82,20.97215622]
[1769709628884,188.94,117.92,117.83,14.39488211]
[1769709629482,118.8569,117.96,117.85,22.04238211]
[1769709629683,6.19330572,117.95,117.85,22.04238211]
[1769709629892,189.88,117.96,117.87,14.39488211]
[1769709630084,197.5211,117.96,117.87,22.04118211]
[1769709630284,197.5211,117.96,117.88,14.39488211]
[1769709630489,118.8779,117.94,117.85,14.39488211]
[1769709630683,12.77200254,117.93,117.85,14.39488211]
[1769709630984,7.6436,117.92,117.85,14.39488211]
[1769709632383,7.6425,117.94,117.86,14.39488211]
[1769709632995,197.5212,117.96,117.88,14.39488211]
[1769709633283,118.8679,117.95,117.85,14.39488211]
[1769709634385,189.88,117.96,117.86,14.39488211]
[1769709634791,189.88,117.96,117.88,14.39488211]
[1769709635180,118.8278,117.99,117.88,14.39488211]
[1769709635382,6.19919449,117.98,117.88,14.39488211]
[1769709635586,125.03909449,117.98,117.88,14.39488211]
[1769709635783,125.43387411,117.96,117.88,14.39488211]
[1769709636192,6.1985209,117.95,117.88,14.39488211]
[1769709636588,7.6428,117.93,117.85,22.04218211]
[1769709636895,125.45387411,117.94,117.85,14.39488211]
[1769709637284,6.57727411,117.94,117.86,14.39488211]
[1769709637780,309.3885,117.95,117.86,14.39488211]
[1769709637986,7.6428,117.93,117.86,22.04188211]
[1769709638290,190.52,117.95,117.87,14.39488211]
[1769709638493,7.6427,117.93,117.87,14.39488211]
[1769709639195,7.6434,117.92,117.87,14.39488211]
[1769709639498,7.6434,117.92,117.84,14.39488211]
[1769709639994,309.3923,117.95,117.85,22.04268211]
[1769709640299,6.19591446,117.94,117.85,22.04268211]
[1769709640794,197.09727411,117.95,117.87,14.39488211]
[1769709640987,6.57727411,117.93,117.84,14.39488211]
[1769709641384,6.57727411,117.91,117.81,14.39488211]
[1769709641590,6.59407467,117.9,117.81,14.39488211]
[1769709641997,316.67647467,117.9,117.81,14.39488211]
[1769709643301,7.6458,117.89,117.82,14.39488211]
[1769709644893,7.6458,117.89,117.83,7.6491]
[1769709645393,7.6445,117.91,117.85,7.6478]
[1769709645598,7.6445,117.91,117.85,22.04268211]
[1769709646194,7.6445,117.91,117.82,125.58587467]
[1769709646195,125.49307467,117.92,117.82,14.39488211]
[1769709646392,6.17765425,117.91,117.82,14.39488211]
[1769709647102,125.49307467,117.92,117.82,14.39488211]
[1769709647296,7.6453,117.89,117.83,14.39488211]
[1769709648101,7.6445,117.91,117.84,14.39488211]
[1769709648603,125.49307467,117.92,117.84,14.39488211]
[1769709648999,7.6446,117.9,117.84,14.39488211]
[1769709649390,125.49427467,117.92,117.84,14.39488211]
[1769709649708,6.59407467,117.92,117.84,14.39488211]
[1769709650408,7.6442,117.91,117.85,14.39488211]
[1769709650905,7.6442,117.91,117.85,22.04268211]
[1769709651201,7.643,117.93,117.86,14.39488211]
[1769709651398,192.54,117.95,117.86,14.39488211]
[1769709651592,7.6427,117.93,117.87,14.39488211]
[1769709651792,118.877,117.94,117.87,14.39488211]